{"text_format":"1","workbook":"xlsx","n_sheets":7,"sheets":["使い方","入力用シート"," 計算方法","以右、参考","AG-003 （計算方法）","AG-003（モニタリング）","方法論・認証実績一覧表"],"not_rendered":{"charts":0,"images":2,"macros":1,"external_links":0,"defined_names":20,"comments":0,"pivot_tables":0},"unopened":[],"bounds":{"document_bytes":16777216,"sheet_cells":100000,"rows_first":2000,"rows_last":500,"rows_between":2000,"halvings":0,"cell_chars":16384,"cell_head_chars":4096},"cells_cut":0,"cells_raw":0,"read":"whole","date_system":"1900"}

{"sheet":"使い方","index":0,"n_rows":21,"n_cols":3,"rows_kept":21,"cut":false,"hidden":false,"merged":[]}
[null,"【　シミュレーターの使い方　】"]
[null,"【AG-003:茶園土壌への硝化抑制剤入り化学肥料又は石灰窒素を含む複合肥料の施肥】"]
[]
[null,"■入力用シート","☜クリックするとページにジャンプします。"]
[null,"モニタリング項目を入力することで、排出削減量が確認できます。"]
[]
[]
[]
[]
[]
[]
[]
[]
[]
[]
[]
[]
[]
[]
[null,"■計算方法","☜クリックするとページにジャンプします。"]
[null,"ベースライン排出量やプロジェクト実施後の排出量と計算式が確認できます。"]

{"sheet":"入力用シート","index":1,"n_rows":28,"n_cols":9,"rows_kept":28,"cut":false,"hidden":false,"merged":[[9,1,9,2],[18,1,18,2],[6,4,6,5]]}
[]
[null,null,"　　【AG-003:茶園土壌への硝化抑制剤入り化学肥料又は石灰窒素を含む複合肥料の施肥】"]
[null,null,"黄色セルを上から順に、数値をご記入ください。"]
[null,null,null,null,null,"自動入力"]
[null,null,null,null,null,"プロジェクト実施者が入力"]
[]
[null,null,"排出削減量(t-CO2)",{"$f":"' 計算方法'!E8","v":0},"☜下記の黄色セルを入力することで、\n最終的に排出削減量が計算されます。"]
[]
[null,null,"1) 活動量のモニタリング"]
[null,"モニタリング項目",null,"数値","単位","備考",null,"モニタリング方法例","モニタリング頻度"]
[null,"APJ","プロジェクト実施後の硝化抑制剤入り化学肥料又は石灰窒素を含む複合肥料を施肥する面積",10,"ha","数値を入力してください。",null,"・eMAFF 農地ナビ、実測、生産管理記録等で把握","作付一回ごとに 1 回"]
[null,"AFPJ","プロジェクト実施後の硝化抑制剤入り化学肥料又は石灰窒素を含む複合肥料の平均施肥量",1,"t/ha･年","数値を入力してください。"]
[null,"FPJ,transport","プロジェクト実施後の硝化抑制剤入り化学肥料又は石灰窒素を含む複合肥料の運搬における燃料使用量",0.5,"kL/年","数値を入力してください。"]
[null,"ABL","ベースラインの窒素含有化学肥料又は有機肥料を施肥する面積",{"$f":"$D$11","v":10},"ha"]
[null,"AFBL","ベースラインの窒素含有化学肥料又は有機肥料の平均施肥量",null,"t/ha･年","数値を入力してください。"]
[null,"FBL,transport","ベースラインの窒素含有化学肥料又は有機肥料の運搬における燃料使用量",null,"kL/年","数値を入力してください。"]
[]
[null,null,"2) 係数のモニタリング"]
[null,"モニタリング項目",null,"数値","単位","備考",null,"モニタリング方法例","モニタリング頻度"]
[null,"FNPJ","プロジェクト実施後の硝化抑制剤入り化学肥料又は石灰窒素を含む複合肥料中の窒素量",null,"tN/t","数値を入力してください。",null,"・eMAFF 農地ナビ、生産管理記録等で確認","初回検証申請時に1回"]
[null,"EFPJ,N2O,f","プロジェクト実施後の硝化抑制剤入り化学肥料又は石灰窒素を含む複合肥料の排出係数",null,"tN2O-N/tN","数値を入力してください。"]
[null,"GWPN2O","N2O の地球温暖化係数",265,"tCO2/tN2O","数値を入力してください。"]
[null,"HVPJ,transport","プロジェクト実施後の硝化抑制剤入り化学肥料又は石灰窒素を含む複合肥料の運搬に使用する燃料の単位発熱量",1,"GJ/kL","数値を入力してください。"]
[null,"CEFPJ,transport","プロジェクト実施後の硝化抑制剤入り化学肥料又は石灰窒素を含む複合肥料の運搬に使用する燃料の単位発熱量当たりのCO2 排出係数",0.5,"tCO2/GJ","数値を入力してください。"]
[null,"FNBL","ベースラインの窒素含有化学肥料又は有機肥料中の窒素量",0.3,"tN/t","数値を入力してください。",null,"・原則としてデフォルト値の定められた 3 条件（排水不良・日排除・4 時間排除）のうち、当該水田の所在地域、施用有機物の条件で最低の排出係数となる条件とする。ただし、1人の取組実施者が管理する水田ごとに 1 か所、水田の日減水深（田面水の浸透・蒸発速度（mm／日））を実測し、その結果に基づきより高い排出係数の条件とすることができる。","初回検証申請時に1回（ただし日減水深の実測により、2回目以降の検証申請時に更新することも可）"]
[null,"EFBL,N2O,f","ベースラインの窒素含有化学肥料又は有機肥料の排出係数",2.9000000000000001E-2,"tN2O-N/tN","数値を入力してください。"]
[null,"HVBL,transport","ベースラインの窒素含有化学肥料又は有機肥料の運搬に使用する燃料の単位発熱量",1,"GJ/kL","数値を入力してください。"]
[null,"CEFBL, transport","ベースラインの窒素含有化学肥料又は有機肥料の運搬に使用する燃料の単位発熱量当たりの CO2排出係数",0.5,"tCO2/GJ","数値を入力してください。"]

{"sheet":" 計算方法","index":2,"n_rows":66,"n_cols":7,"rows_kept":66,"cut":false,"hidden":false,"merged":[[1,4,1,5]]}
[null,null,"計算方法：茶園土壌への施肥",null,"【自動で計算されます。】"]
[null,null,null,null,"自動入力"]
[]
[null,null,"１．適用条件","計算式記載なし"]
[]
[null,null,"２．排出削減量の算定"]
[null,null,"記号","定義","数値","単位","計算式"]
[null,null,"ER","排出削減量",{"$f":"ROUNDDOWN($E$9-$E$10,0)","v":0},"tCO2e/年","ER= EM BL ー EM PJ"]
[null,null,"EMBL","ベースライン排出量",{"$f":"ROUND($E$45,1)","v":0},"tCO2e/年","―"]
[null,null,"EMPJ","プロジェクト実施後排出量",{"$f":"ROUND($E$14,1)","v":0.3},"tCO2e/年","―"]
[]
[null,null,"3．プロジェクト実施後排出量の算定"]
[null,null,"記号","定義","数値","単位","計算式"]
[null,null,"EMPJ","プロジェクト実施後排出量",{"$f":"$E$15+$E$16","v":0.25},"tCO2e/年","EM PJ = EM PJ,M + EM PJ,S"]
[null,null,"EMPJ,M","プロジェクト実施後の主要排出量",{"$f":"$E$21","v":0},"tCO2e/年","―"]
[null,null,"EMPJ,S","プロジェクト実施後の付随的な排出量",{"$f":"$E$32","v":0.25},"tCO2/年 ","―"]
[]
[null,null,"＜主要排出活動＞"]
[null,null,"a) プロジェクト実施後の硝化抑制剤入り化学肥料又は石灰窒素を含む複合肥料の施肥による排出量"]
[null,null,"記号","定義","数値","単位","計算式"]
[null,null,"EMPJ,M","プロジェクト実施後の主要排出量",{"$f":"$E$22*$E$23*$E$24*$E$25*$E$26*$E$27","v":0},"tCO2e/年","EMPJ,M = Σ(APJ × AFPJ × FNPJ ) × EFPJ,N2O,f × 44/28 × GWPN2O"]
[null,null,"APJ","プロジェクト実施後の硝化抑制剤入り化学肥料又は石灰窒素を含む複合肥料を施肥する面積",{"$f":"入力用シート!$D$11","v":10},"ha","―"]
[null,null,"AFPJ","プロジェクト実施後の硝化抑制剤入り化学肥料又は石灰窒素を含む複合肥料の平均施肥量",{"$f":"入力用シート!$D$12","v":1},"t/ha･年","―"]
[null,null,"FNPJ","プロジェクト実施後の硝化抑制剤入り化学肥料又は石灰窒素を含む複合肥料中の窒素量",{"$f":"入力用シート!$D$20","v":0},"tN/t","―"]
[null,null,"EFPJ,N2O,f","プロジェクト実施後の硝化抑制剤入り化学肥料又は石灰窒素を含む複合肥料の排出係数",{"$f":"入力用シート!$D$21","v":0},"tN2O-N/tN","―"]
[null,null,"44/28","N2O 中に含まれる窒素重量（tN2O-N）を N2O 重量（tN2O）に変換するための係数",{"$f":"44/28","v":1.5714285714285714},"tN2O/tN2O-N","―"]
[null,null,"GWPN2O","N2O の地球温暖化係数",{"$f":"入力用シート!$D$22","v":265},"tCO2/tN2O","―"]
[]
[null,null,"＜付随的な排出活動＞"]
[null,null,"b) プロジェクト実施後の硝化抑制剤入り化学肥料又は石灰窒素を含む複合肥料を車両で運搬する際の化石燃料の使用に伴う排出量"]
[null,null,"記号","定義","数値","単位","計算式"]
[null,null,"EMPJ,S","プロジェクト実施後の付随的な排出量",{"$f":"$E$33*$E$34*$E$35","v":0.25},"tCO2/年","EMPJ,S = Σ(FPJ,transport ×HVPJ,transport × CEFPJ,transport)"]
[null,null,"FPJ,transport","プロジェクト実施後の硝化抑制剤入り化学肥料又は石灰窒素を含む複合肥料の運搬における燃料使用量",{"$f":"入力用シート!D13","v":0.5},"kL/年","―"]
[null,null,"HVPJ,transport","プロジェクト実施後の硝化抑制剤入り化学肥料又は石灰窒素を含む複合肥料の運搬に使用する燃料の単位発熱量",{"$f":"入力用シート!D23","v":1},"GJ/kL","―"]
[null,null,"CEFPJ,transport","プロジェクト実施後の硝化抑制剤入り化学肥料又は石灰窒素を含む複合肥料の運搬に使用する燃料の単位発熱量当たりの CO2 排出係数",{"$f":"入力用シート!D24","v":0.5},"tCO2/GJ","―"]
[]
[null,null,"４．ベースライン排出量の考え方"]
[null,null,"記号","定義","数値","単位","計算式"]
[null,null,"ABL","ベースラインの窒素含有化学肥料又は有機肥料を施肥する面積 ",{"$f":"$E$40","v":10},"ha","ABL =  APJ"]
[null,null,"APJ","プロジェクト実施後の硝化抑制剤入り化学肥料又は石灰窒素を含む複合肥料を施肥する面積",{"$f":"入力用シート!$D$11","v":10},"ha","―"]
[]
[]
[null,null,"５．ベースライン排出量の算定"]
[null,null,"記号","定義","数値","単位","計算式"]
[null,null,"EMPJ","ベースライン排出量",{"$f":"$E$46+$E$47","v":0},"tCO2e/年","EMBL =  EMBL,M + EMBL,S"]
[null,null,"EMBL,M","ベースラインの主要排出量",{"$f":"$E$52","v":0},"tCO2e/年","―"]
[null,null,"EMBL,S","ベースラインの付随的な排出量",{"$f":"$E$63","v":0},"tCO2/年 ","―"]
[]
[null,null,"＜主要排出活動＞"]
[null,null,"a) ベースラインの窒素含有化学肥料又は有機肥料の施肥による排出量"]
[null,null,"記号","定義","数値","単位","計算式"]
[null,null,"EMBL,M","ベースラインの主要排出量 ",{"$f":"ROUND($E$53*$E$54*$E$54*$E$55*$E$56*$E$57*$E$58,1)","v":0},"tCO2e/年","EMBL,M = Σ(ABL × AFBL × FNBL) × EFBL,N2O,f × 44/28 × GWPN2O"]
[null,null,"ABL","ベースラインの窒素含有化学肥料又は有機肥料を施肥する面積 ",{"$f":"入力用シート!D14","v":10},"ha","―"]
[null,null,"AFBL","ベースラインの窒素含有化学肥料又は有機肥料の平均施肥量",{"$f":"入力用シート!D15","v":0},"t/ha･年","―"]
[null,null,"FNBL","ベースラインの窒素含有化学肥料又は有機肥料中の窒素量",{"$f":"入力用シート!D25","v":0.3},"tN/t","―"]
[null,null,"EFBL,N2O,f","ベースラインの窒素含有化学肥料又は有機肥料の排出係数",{"$f":"入力用シート!D26","v":2.9000000000000001E-2},"tN2O-N/tN","―"]
[null,null,"44/28","N2O 中に含まれる窒素重量（tN2O-N）を N2O 重量（tN2O）に変換するための係数",{"$f":"44/28","v":1.5714285714285714},"―","―"]
[null,null,"GWPN2O","N2O の地球温暖化係数 ",{"$f":"入力用シート!D22","v":265},"tCO2/tN2O","―"]
[]
[null,null,"＜付随的な排出活動＞"]
[null,null,"b) ベースラインの窒素含有化学肥料又は有機肥料を車両で運搬する際の化石燃料の使用に伴う排出量"]
[null,null,"記号","定義","数値","単位","計算式"]
[null,null,"EMBL,S","ベースラインの付随的な排出量",{"$f":"E64*E65*E66","v":0},"tCO2/年","EMBL,S = Σ(FBL,transport × HVBL,transport × CEFBL,transport)"]
[null,null,"FBL,transport","ベースラインの窒素含有化学肥料又は有機肥料の運搬における燃料使用",{"$f":"入力用シート!D16","v":0},"kL/年","―"]
[null,null,"HVBL,transport","ベースラインの窒素含有化学肥料又は有機肥料の運搬に使用する燃料の単位発熱量",{"$f":"入力用シート!D27","v":1},"GJ/kL","―"]
[null,null,"CEFBL,transport","ベースラインの窒素含有化学肥料又は有機肥料の運搬に使用する燃料の単位発熱量当たりの CO2 排出係数",{"$f":"入力用シート!D28","v":0.5},"tCO2/GJ","―"]

{"sheet":"以右、参考","index":3,"n_rows":0,"n_cols":0,"rows_kept":0,"cut":false,"hidden":true,"merged":[]}

{"sheet":"AG-003 （計算方法）","index":4,"n_rows":66,"n_cols":6,"rows_kept":66,"cut":false,"hidden":true,"merged":[]}
[]
["１．適用条件","計算式記載なし"]
[]
["２．排出削減量の算定"]
["記号","定義","数値","単位","計算式","備考"]
["ER","排出削減量",null,"tCO2e/年","ER= EM BL ー EM PJ","ー"]
["EMBL","ベースライン排出量",null,"tCO2e/年","―","ー"]
["EMPJ","プロジェクト実施後排出量",null,"tCO2e/年","―","ー"]
[]
[]
["3．プロジェクト実施後排出量の算定"]
["記号","定義","数値","単位","計算式","備考"]
["EMPJ","プロジェクト実施後排出量",null,"tCO2e/年","EM PJ = EM PJ,M + EM PJ,S","ー"]
["EMPJ,M","プロジェクト実施後の主要排出量",null,"tCO2e/年","―","ー"]
["EMPJ,S","プロジェクト実施後の付随的な排出量",null,"tCO2/年 ","―","ー"]
[]
["＜主要排出活動＞"]
["a) プロジェクト実施後の硝化抑制剤入り化学肥料又は石灰窒素を含む複合肥料の施肥による排出量"]
["記号","定義","数値","単位","計算式","備考"]
["EMPJ,M","プロジェクト実施後の主要排出量",null,"tCO2e/年","EMPJ,M = Σ(APJ × AFPJ × FNPJ ) × EFPJ,N2O,f × 44/28 × GWPN2O","ー"]
["APJ","プロジェクト実施後の硝化抑制剤入り化学肥料又は石灰窒素を含む複合肥料を施肥する面積",null,"ha","―","ー"]
["AFPJ","プロジェクト実施後の硝化抑制剤入り化学肥料又は石灰窒素を含む複合肥料の平均施肥量",null,"t/ha･年","―","ー"]
["FNPJ","プロジェクト実施後の硝化抑制剤入り化学肥料又は石灰窒素を含む複合肥料中の窒素量",null,"tN/t","―","ー"]
["EFPJ,N2O,f","プロジェクト実施後の硝化抑制剤入り化学肥料又は石灰窒素を含む複合肥料の排出係数",null,"tN2O-N/tN","―","ー"]
["44/28","N2O 中に含まれる窒素重量（tN2O-N）を N2O 重量（tN2O）に変換するための係数",null,"tN2O/tN2O-N","―","ー"]
["GWPN2O","N2O の地球温暖化係数",null,"tCO2/tN2O","―","ー"]
[]
["＜付随的な排出活動＞"]
["b) プロジェクト実施後の硝化抑制剤入り化学肥料又は石灰窒素を含む複合肥料を車両で運搬する際の化石燃料の使用に伴う排出量"]
["記号","定義","数値","単位","計算式","備考"]
["EMPJ,S","プロジェクト実施後の付随的な排出量",null,"tCO2/年","EMPJ,S = Σ(FPJ,transport ×HVPJ,transport × CEFPJ,transport)","プロジェクト実施後の付随的な排出量（EMPJ,S）の算定に当たっては、燃費法又はトンキロ法を使用してもよい。燃費法及びトンキロ法の詳細については「モニタリング・算定規程」の別冊を参照すること。"]
["FPJ,transport","プロジェクト実施後の硝化抑制剤入り化学肥料又は石灰窒素を含む複合肥料の運搬における燃料使用量",null,"kL/年","―","ー"]
["HVPJ,transport","プロジェクト実施後の硝化抑制剤入り化学肥料又は石灰窒素を含む複合肥料の運搬に使用する燃料の単位発熱量",null,"GJ/kL","―","ー"]
["CEFPJ,transport","プロジェクト実施後の硝化抑制剤入り化学肥料又は石灰窒素を含む複合肥料の運搬に使用する燃料の単位発熱量当たりの CO2 排出係数",null,"tCO2/GJ","―","ー"]
[]
[]
["４．ベースライン排出量の考え方"]
["記号","定義","数値","単位","計算式","備考"]
["ABL","ベースラインの窒素含有化学肥料又は有機肥料を施肥する面積 ",null,"ha","ABL =  APJ","ー"]
["APJ","プロジェクト実施後の硝化抑制剤入り化学肥料又は石灰窒素を含む複合肥料を施肥する面積",null,"ha","―","ー"]
[]
[]
["５．ベースライン排出量の算定"]
["記号","定義","数値","単位","計算式","備考"]
["EMPJ","ベースライン排出量",null,"tCO2e/年","EMBL =  EMBL,M + EMBL,S","ー"]
["EMBL,M","ベースラインの主要排出量",null,"tCO2e/年","―","ー"]
["EMBL,S","ベースラインの付随的な排出量",null,"tCO2/年 ","―","ー"]
[]
["＜主要排出活動＞"]
["a) ベースラインの窒素含有化学肥料又は有機肥料の施肥による排出量"]
["記号","定義","数値","単位","計算式","備考"]
["EMBL,M","ベースラインの主要排出量 ",null,"tCO2e/年","EMBL,M = Σ(ABL × AFBL × FNBL) × EFBL,N2O,f × 44/28 × GWPN2O","ー"]
["ABL","ベースラインの窒素含有化学肥料又は有機肥料を施肥する面積 ",null,"ha","―","ー"]
["AFBL","ベースラインの窒素含有化学肥料又は有機肥料の平均施肥量",null,"t/ha･年","―","ー"]
["FNBL","ベースラインの窒素含有化学肥料又は有機肥料中の窒素量",null,"tN/t","―","ー"]
["EFBL,N2O,f","ベースラインの窒素含有化学肥料又は有機肥料の排出係数",null,"tN2O-N/tN","―","ー"]
["44/28","N2O 中に含まれる窒素重量（tN2O-N）を N2O 重量（tN2O）に変換するための係数",null,"―","―","ー"]
["GWPN2O","N2O の地球温暖化係数 ",null,"tCO2/tN2O","―","ー"]
[]
["＜付随的な排出活動＞"]
["b) ベースラインの窒素含有化学肥料又は有機肥料を車両で運搬する際の化石燃料の使用に伴う排出量"]
["記号","定義","数値","単位","計算式","備考"]
["EMBL,S","ベースラインの付随的な排出量",null,"tCO2/年","EMBL,S = Σ(FBL,transport × HVBL,transport × CEFBL,transport)","ベースラインの付随的な排出量（EMBL,S）の算定に当たっては、燃費法又はトンキロ法を使用してもよい。燃費法及びトンキロ法の詳細については「モニタリング・算定規程」の別冊を参照すること。"]
["FBL,transport","ベースラインの窒素含有化学肥料又は有機肥料の運搬における燃料使用",null,"kL/年","―","ー"]
["HVBL,transport","ベースラインの窒素含有化学肥料又は有機肥料の運搬に使用する燃料の単位発熱量",null,"GJ/kL","―","ー"]
["CEFBL,transport","ベースラインの窒素含有化学肥料又は有機肥料の運搬に使用する燃料の単位発熱量当たりの CO2 排出係数",null,"tCO2/GJ","―","ー"]

{"sheet":"AG-003（モニタリング）","index":5,"n_rows":26,"n_cols":4,"rows_kept":26,"cut":false,"hidden":true,"merged":[[20,0,21,0],[20,1,21,1],[3,0,3,1],[5,0,6,0],[5,1,6,1],[9,0,10,0],[9,1,10,1],[13,0,13,1],[14,0,15,0],[14,1,15,1]]}
[]
["６．モニタリング方法"]
["1) 活動量のモニタリング"]
["モニタリング項目",null,"モニタリング方法例","モニタリング頻度"]
["APJ","プロジェクト実施後の硝化抑制剤入り化学肥料又は石灰窒素を含む複合肥料を施肥する面積（ha）","・実測、生産管理記録等で把握","施肥ごとに計測し累計"]
["AFPJ","プロジェクト実施後の硝化抑制剤入り化学肥料又は石灰窒素を含む複合肥料の平均施肥量（t/ha･年）","・計量器で計測","施肥ごとに計測し累計"]
[null,null,"・購入量による推計","購買ごと"]
["FPJ,transport","プロジェクト実施後の硝化抑制剤入り化学肥料又は石灰窒素を含む複合肥料の運搬における燃料使用量（kL/年）","・燃料供給会社からの請求書をもとに算定\n・重量計による計測","対象期間で累計"]
["ABL","ベースラインの窒素含有化学肥料又は有機肥料を施肥する面積（ha）","・実測、生産管理記録等で把握","プロジェクト実施前に一回"]
["AFBL","ベースラインの窒素含有化学肥料又は有機肥料の平均施肥量（t/ha･年）","・計量器で計測","【要求頻度】\nプロジェクト開始直近の 1 年間以上の実績を累計"]
[null,null,"・購入量による推計","【要求頻度】\nプロジェクト開始直近の 1 年間以上の実績を累計"]
[]
["2) 係数のモニタリング"]
["モニタリング項目",null,"モニタリング方法例","モニタリング頻度"]
["FNPJ","プロジェクト実施後の硝化抑制剤入り化学肥料又は石灰窒素を含む複合肥料中の窒素量（tN/t）","・肥料供給会社の提供データ","購買ごと"]
[null,null,"・実測","【要求頻度】\n年 1 回以上ただし、肥料の種類に変更があった場合には都度計測"]
["EFPJ,N2O,f","プロジェクト実施後の硝化抑制剤入り化学肥料又は石灰窒素を含む複合肥料の排出係数（ tN2O\u0002N/tN）","・デフォルト値を使用 ","【要求頻度】\n検証申請時に最新のものを使用"]
["GWPN2O","N2O の地球温暖化係数（tCO2/tN2O）","・デフォルト値を使用 ","【要求頻度】\n検証申請時に最新のものを使用"]
["HVPJ,transport","プロジェクト実施後の硝化抑制剤入り化学肥料又は石灰窒素を含む複合肥料の運搬に使用する燃料の単位発熱量（GJ/kL）","・デフォルト値を利用* ","【要求頻度】\n検証申請時に最新のものを使用"]
["CEFPJ,transport","プロジェクト実施後の硝化抑制剤入り化学肥料又は石灰窒素を含む複合肥料の運搬に使用する燃料の単位発熱量当たりのCO2 排出係数（tCO2/GJ）","・デフォルト値を利用*","【要求頻度】\n検証申請時に最新のものを使用"]
["FNBL","ベースラインの窒素含有化学肥料又は有機肥料中の窒素量（tN/t）","・肥料供給会社の提供データ","購買ごと"]
[null,null,"・実測","【要求頻度】\n年 1 回以上ただし、肥料の種類に変更があった場合には都度計測"]
["EFBL,N2O,f","ベースラインの窒素含有化学肥料又は有機肥料の排出係数（tN2O-N/tN）","・デフォルト値を使用 ","【要求頻度】\n検証申請時に最新のものを使用"]
["HVBL,transport","ベースラインの窒素含有化学肥料又は有機肥料の運搬に使用する燃料の単位発熱量（GJ/kL）","・デフォルト値を利用*","【要求頻度】\n検証申請時に最新のものを使用"]
["CEFBL, transport","ベースラインの窒素含有化学肥料又は有機肥料の運搬に使用する燃料の単位発熱量当たりの CO2排出係数（tCO2/GJ）","・デフォルト値を利用*","【要求頻度】\n検証申請時に最新のものを使用"]
["* 化石燃料の単位発熱量及び排出係数は、供給会社からの提供値又は実測により把握することもできる。この場合、「モニタリング・算定規程」に示す要求頻度を満たしてモニタリングを実施すること。"]

{"sheet":"方法論・認証実績一覧表","index":6,"n_rows":22,"n_cols":15,"rows_kept":22,"cut":false,"hidden":true,"merged":[[3,6,4,6],[3,7,3,10],[3,11,3,14],[10,0,15,0],[10,1,15,1],[10,2,15,2],[10,3,15,3],[10,4,15,4],[10,5,15,5],[10,6,15,6],[3,0,4,0],[3,1,4,1],[3,2,4,2],[3,3,4,3],[3,4,4,4],[3,5,4,5],[16,6,20,6],[16,0,20,0],[16,1,20,1],[16,2,20,2],[16,3,20,3],[16,4,20,4],[16,5,20,5]]}
[]
["J-クレジットの農業分野の方法論及び認証実績一覧表"]
[]
["方法論No.","方法論","削減方法","適用条件","ベースライン排出量の考え方","主なモニタリング項目","適用条件","J-クレジット認証実績（通常型）",null,null,null,"J-クレジット認証実績（プログラム型）"]
[null,null,null,null,null,null,null,"認証申請日","プロジェクト実施者","プロジェクト概要","認証量","認証申請日","運営・管理者","プロジェクト概要","認証量"]
["AG-001","牛・豚・ブロイラーへのアミノ酸バランス改善飼料の給餌","慣用飼料に代えてアミノ酸バランス改善飼料を給餌することにより、排せつ物管理からのN2O排出量を抑制する。","① プロジェクト実施前において、慣用飼料給餌量が、牛・豚は「日本飼養標準」の1.2倍、ブロイラーは品種ごとに定められた「栄養推奨値」の1.1倍を上回らないこと。\n② プロジェクト実施後において、慣用飼料のCP含有率（％）から1～3％引き下げたCP含有率のアミノ酸バランス改善飼料を給餌し、牛・豚はその給餌量が「日本飼養標準」の1.2倍、ブロイラーは品種毎に定められた「栄養推奨値」の1.1倍を上回らないこと。\n③ 排せつ物の処理方法は「貯留、天日乾燥、火力乾燥、炭化処理、強制発酵、堆積発酵、焼却、浄化、メタン発酵、産業廃棄物処理、放牧又はその他」のいずれかであること。\n④ アミノ酸バランス改善飼料を給餌する家畜は乳用牛・肉用牛・肥育豚・ブロイラーであること。\n⑤ ブロイラーへの給餌について、プロジェクト実施後の1日１羽あたりのCPの給餌量が、プロジェクト前より増加しないこと。"," 乳用牛・肉用牛・肥育豚・ブロイラーをアミノ酸バランス改善飼料ではなく、慣用飼料で使用した場合に想定される温室効果ガス排出量","• 排せつ物の管理区分\n• 乳用牛・肉用牛・肥育豚の平均飼養頭数及び飼養日数、ブロイラーの平均飼養羽数及び飼養日数\n• 慣用飼料及びアミノ酸バランス改善飼料のCP含有率（％）、乾物摂取量、\n• ブロイラーへのプロジェクト実施前後の１日１羽当たりの給餌量（重量）","本方法論は、次の条件の全てを満たす場合に適用することができる。\n• 条件 1：プロジェクト実施前には慣用飼料を給餌しており、その給餌量が牛は「日本飼養標準」に基づく慣行レベル（標準 CP 値）に安全率 20％を見込んだ水準（標準 CP 値の 1.2 倍）を、豚は「日本飼養標準」に基づく慣行レベル（標準 CP 値）に安全率 20%を見込んだ水準（標準CP 値の 1.2 倍）を、ブロイラーはブロイラー品種ごとに定められた栄養推奨値の CP 値に安全率 10%を見込んだ水準（栄養推奨値の CP 値の 1.1 倍）を上回らないこと。\n• 条件 2：プロジェクト実施後には慣用飼料の CP 含有率（%）から 1～3%引き下げた CP 含有率のアミノ酸バランス改善飼料を給餌しており、その給餌量が牛は「日本飼養標準」に基づく慣行レベル（標準 CP 値）に安全率 20％を見込んだ水準（標準 CP 値の 1.2 倍）を、豚は「日本飼養標準」に基づく慣行レベル（標準 CP 値）に安全率 20%を見込んだ水準（標準 CP 値の 1.2 倍）を、ブロイラーはブロイラー品種ごとに定められた栄養推奨値の CP 値に安全率 10%を見込んだ水準（栄養推奨値の CP 値の 1.1 倍）を上回らないこと。\n• 条件 3：プロジェクト実施前後の排せつ物処理方法は温室効果ガスインベントリ報告書で記された「貯留、天日乾燥、火力乾燥、炭化処理、強制発酵、堆積発酵、焼却、浄化、メタン発酵、産業廃棄物処理、放牧又はその他」のいずれかであること。\n• 条件 4：アミノ酸バランス改善飼料を給餌する家畜は、乳用牛・肉用牛・肥育豚・ブロイラーであること。\n• 条件 5：ブロイラーへの給餌について、プロジェクト実施後の 1 日 1 羽当たりの CP の給餌量\n（重量）は、プロジェクト実施前より増加しないこと。","―","―","―","―","―","―","―","―"]
["AG-002","家畜排せつ物管理方法の変更","家畜の飼養における排せつ物の管理方法を変更することによりCH4及びN2O排出量を抑制する。","① 温室効果ガスの排出が少ない排せつ物管理方法へと変更すること及びプロジェクト実施前後の排せつ物管理方法が日本国温室効果ガスインベントリ報告書で規定される管理区分に該当すること。\n② プロジェクト実施前後で、家畜種を変更しないこと。\n③ 家畜は、日本国温室効果ガスインベントリ報告書で規定される牛（乳用牛又は肉用牛）、豚又は鶏（採卵鶏又はブロイラー）であること。","プロジェクト実施後の家畜排せつ物をプロジェクト実施前の管理方法で処理する場合に想定される温室効果ガス排出量。","・ プロジェクト実施前後の排せつ物管理区分\n・プロジェクト実施後の排せつ物管理区分ごとの家畜種ごとの飼養頭数及び飼養日数\n・ 排せつ物管理における燃料使用量及び電力使用量","本方法論は、次の条件の全てを満たす場合に適用することができる。\n• 条件 1：プロジェクト実施前の家畜排せつ物管理方法から、GHG 排出量が少ない家畜排せつ物管理方法へと変更すること。また、プロジェクト実施前後で、家畜排せつ物の管理方法が日本国温室効果ガスインベントリ報告書で規定される管理区分に該当すること。\n• 条件 2：プロジェクト実施前後で、家畜種を変更しないこと。\n• 条件 3：家畜は、日本国温室効果ガスインベントリ報告書で規定される牛（乳用牛又は肉用牛）、豚又は鶏（採卵鶏又はブロイラー）であること。","―","―","―","―","―","―","―","―"]
["AG-003","茶園土壌への硝化抑制剤入り化学肥料又は石灰窒素を含む複合肥料の施肥","茶の栽培において、茶園に硝化抑制剤入りの化学肥料又は石灰窒素を含む複合肥料を施肥し、プ ロジェクト実施前の肥料施肥量を減らすことで、土壌からのN2O排出量を削減する。","① プロジェクト実施前に施肥していた石灰窒素以外の窒素含有化学肥料又は有機肥料をジシアンジアミドが混合された化学肥料又は石灰窒素を含む複合肥料に代替すること。\n② 硝化抑制剤入り化学肥料又は石灰窒素を含む複合肥料を施肥する土壌で栽培する作物は茶であること。\n③ プロジェクト実施前後で、肥料の施肥方法、落葉・剪定枝の管理方法について変更がないこと。\n④ プロジェクト実施前に平均施肥量について1年間以上のデータがあること","茶園において、硝化抑制剤入り化学肥料又は石灰窒素を含む複合肥料ではない、窒素含有化学肥料又は有機肥料を施肥する場合に想定される温室効果ガス排出量。","・プロジェクト実施後に硝化抑制剤入り化学肥料又は石灰窒素を含む複合肥料を施肥する面積及び平均施肥量\n・プロジェクトで施肥した硝化抑制剤入り化学肥料中又は石灰窒素を含む複合肥料中の窒素量及びジシアンジアミド含有量\n・プロジェクト実施前に化学肥料を施肥していた面積及び平均施肥量","本方法論は、次の条件の全てを満たす場合に適用することができる。\n・条件 1：プロジェクト実施前に使用している石灰窒素以外の窒素含有化学肥料又は有機肥料を、プロジェクト実施後は硝化抑制剤であるジシアンジアミドが混合された化学肥料又は石灰窒素を含む複合肥料※に代替すること。\n・条件 2：硝化抑制剤入り化学肥料又は石灰窒素を含む複合肥料を施肥する土壌で栽培する作物は、茶であること。\n・条件 3：プロジェクト実施前後で、肥料の施肥方法、茶樹の落葉の管理方法、剪定枝の管理方法のいずれについても変更がないこと。\n・条件 4：窒素含有化学肥料又は有機肥料の平均施肥量について、プロジェクト実施前 1 年間以上のデータがあること。","―","―","―","―","―","―","―","―"]
["AG-004","バイオ炭の農地施用","ー","① バイオ炭を、農地法第2条に定める「農地」又は「採草放牧地」における鉱質の土壌に施用すること。\n② 施用するバイオ炭は、炭素含有率及び100年後の炭素残存率のデフォルト値が適用できる種類であること、又はそのようなデフォルト値が適用できる原料及び製炭温度により製造されたものであることが、客観的に確認できること。\n③ バイオ炭の原料は国産であり、塗料、接着剤等が含まれていないこと。また、他に利用用途のないものであること（燃料用炭の副生物等も対象）。","ー","ー","本方法論は、次の条件の全てを満たす場合に適用することができる。\n・ 条件 1：バイオ炭を、農地法第 2 条に定める「農地」又は「採草放牧地」における鉱質の土壌に施用すること。\n・ 条件 2：施用するバイオ炭は、炭素含有率及び 100 年後の炭素残存率のデフォルト値が適用できる種類であること、又はそのようなデフォルト値が適用できる原料及び製炭温度により製造されたものであることが、客観的に確認できること。\n・ 条件 3：バイオ炭の原料として木材（竹も含む）を使用する場合、当該原料は国内産であること。\n・ 条件 4：バイオ炭の原料は、未利用の生物資源であること。また、農地施用を用途とするバイオ炭の製造を目的として主伐された木材でないこと。\n・ 条件 5：バイオ炭の原料には、異物、塗料、接着剤、防腐剤、薬剤、有害物が含まれてないこと。また、その入手・使用にあたって法令違反や不適切な手続がないこと。","―","―","―","―","2022-03-29","一般社団法人　日本クルベジ協会","農家におけるバイオ炭の農地利用",247]
["AG-005","水稲栽培における中干し期間の延長","ー","ー","ー","ー","本方法論は、次の条件を満たす場合に適用することができる。\n・ 条件：水稲栽培において、中干しの期間を、プロジェクト実施水田（以下、「当該水田」という。）におけるプロジェクト実施前の直近 2 か年以上の実施日数の平均より 7 日間以上延長すること。","―","―","―","―","―","―","―","―"]
["EN-S-002","ヒートポンプの導入","効率のよいヒートポンプを導入することにより、化石燃料の使用量を削減する。","① 更新前の熱源設備又は標準的な熱源設備よりも効率のよいヒートポンプを導入すること。\n② ヒートポンプで生産した温水、冷水又は蒸気の熱を全部又は一部を自家消費すること。","プロジェクト実施後のヒートポンプによる生成熱量を、ベースラインの熱源設備から得る場合に想定されるCO2排出量。","・ プロジェクト実施後のヒートポンプにおけるエネルギー使用量\n・プロジェクト実施後のヒートポンプの効率\n・ 更新前の熱源設備又は標準的な熱源設備の効率","本方法論は、次の条件の全てを満たす場合に適用することができる。\n• 条件 1：プロジェクト登録基準を満たすヒートポンプを導入すること。\n• 条件 2：ベースラインの設備を特定できること。\n• 条件 3：ヒートポンプで生産した温水、冷水又は蒸気の熱の全部又は一部を自家消費すること。","2017-02-27","社会福祉法人　敬長福祉会","特別養護老人ホームにおけるヒートポンプの導入",81,"2015-11-18","北海道東急ビルマネジメント株式会社","マンションにおけるヒートポンプの新設",71]
[null,null,null,null,null,null,null,"2016-11-24","株式会社 西村屋","ホテルにおける吸収式冷温水機の更新 (A重油→都市ガス)",127,"2016-11-24","北海道東急ビルマネジメント株式会社","マンションにおけるヒートポンプの新設",84]
[null,null,null,null,null,null,null,"2020-05-29","株式会社 西村屋","ホテルにおける吸収式冷温水機の更新 (A重油→都市ガス)",521,"2018-11-22","北海道東急ビルマネジメント株式会社","マンションにおけるヒートポンプの新設",190]
[null,null,null,null,null,null,null,"2022-03-30","留寿都村","公共施設におけるヒートポンプの新設 (電気)",72,"―","―","―","―"]
[null,null,null,null,null,null,null,"2020-02-10","国立大学法人岐阜大学","病院におけるヒートポンプの更新",2093,"―","―","―","―"]
[null,null,null,null,null,null,null,"2021-03-29","株式会社萬世閣","温泉施設におけるヒートポンプの導入",412,"―","―","―","―"]
["EN-S-004","空調設備の導入","効率のよい空調設備を導入することにより、電力等の使用量を削減する。","① 更新前の空調設備又は標準的な空調設備よりも、効率のよい空調設備を導入すること。\n② 空調設備で生産した暖気又は冷気の全部又は一部を自家消費すること。","プロジェクト実施後の空調設備による生成熱量を、ベースラインの空調設備から得る場合に想定されるCO2排出量。","・プロジェクト実施後の空調設備におけるエネルギー使用量\n・ プロジェクト実施後の空調設備のエネルギー消費効率\n・ 更新前の空調設備又は標準的な空調設備のエネルギー消費効率","本方法論は、次の条件の全てを満たす場合に適用することができる。\n• 条件 1：プロジェクト登録基準を満たす空調設備を導入すること。\n• 条件 2：ベースラインの設備を特定できること。\n• 条件 3：空調設備で生産した暖気又は冷気の全部又は一部を自家消費すること。","2016-03-01","株式会社グリーンヘリテージ","ゴルフ場における空調設備の更新",8,"2015-11-18","北海道東急ビルマネジメント株式会社","マンションにおける空調設備の新設",21]
[null,null,null,null,null,null,null,"2018-03-06","株式会社グリーンヘリテージ","ゴルフ場における空調設備の更新",8,"2018-11-22","北海道東急ビルマネジメント株式会社","マンションにおける空調設備の新設",220]
[null,null,null,null,null,null,null,"2017-02-27","社会福祉法人　敬長福祉会","特別養護老人ホームにおける空調設備の更新 (灯油、電力→電力)",17,"2015-11-17","環境経済株式会社","事業所における空調設備の更新 (電気→電気)",13]
[null,null,null,null,null,null,null,"2018-02-23","株式会社欽山","温泉施設における空調設備の更新 (灯油→都市ガス)",0,"―","―","―","―"]
[null,null,null,null,null,null,null,"2022-02-10","株式会社欽山","温泉施設における空調設備の更新 (灯油→都市ガス)",6,"―","―","―","―"]
["EN-R-001","バイオマス固形燃料（木質バイオマス）による化石燃料又は系統電力の代替","ボイラー等の熱源設備、自家発電機等の発電設備又はコージェネレーション等において木質バイオマスを原料とするバイオマス固形燃料（木質ペレット、木質チップ又は薪等）を使用し、それまで使用していた化石燃料又は系統電力を代替することにより、排出量を削減する。","① バイオマス固形燃料又は当該燃料で発電された電力が、化石燃料又は系統電力等を代替すること。\n② 原則として、バイオマス固形燃料を利用する対象設備で生産した熱及び電力の全部又は一部を自家消費すること（クレジットの認証対象は原則として自家消費分に限る）。\n③ バイオマス固形燃料の原料は、未利用の木質バイオマスであること。\n④ 家庭用暖房機器での使用に限り、使用される木質バイオマスは建築廃材ではないこと。\n⑤ 設備の導入を伴う場合は、当該対象設備に対応する方法論に定める適用条件を満たすこと。","プロジェクト実施後に対象設備で使用される熱量を、従来の化石燃料から得る場合に想定されるCO2排出量","・ プロジェクト実施後におけるバイオマス固形燃料の使用量、当該燃料の供給過程（運搬、燃料化処理等）で使用される燃料・電力使用量、各種係数（単位発熱量、CO2排出係数等）\n・設備の導入を伴う場合、ベースライン設備及びプロジェクト設備のエネルギー消費効率","本方法論は、次の条件の全てを満たす場合に適用することができる。\n• 条件 1：バイオマス固形燃料が対象設備で使用される化石燃料若しくは系統電力を代替すること又はバイオマス固形燃料で発電された電力が系統電力等を代替すること。\n• 条件 2：原則として、バイオマス固形燃料を利用する対象設備で生産した熱及び電力の全部又は一部を、自家消費すること。\n• 条件 3：バイオマス固形燃料の原料は、未利用の木質バイオマスであること。また、建築廃材以外の木質バイオマスについては、伐採に当たって法令に従い適切に手続が行われた木材に由来するものであること。輸入された木質バイオマスについては、その流通・加工を行う取扱者から、持続可能性（合法性）が証明された木材・木材製品を用いることを証明する書類の交付を受けること。\n• 条件 4：ペレットストーブ等の家庭用暖房に限り、使用される木質バイオマスは、建築廃材ではないこと。\n• 条件 5：化石燃料からバイオマス固形燃料への代替だけでなく、設備の導入を伴う場合は、当該対象設備に対応する方法論に定める適用条件を満たすこと。ただし、プロジェクト実施前後での対象設備の効率向上に関する条件は除く。","96件",null,null,null,"14件"]